Cogmind - Beta 15 @@@ ROGUE MODE // 2025.10.10 @ 08:37:21 Player: beans Result: Destroyed by Y-64 Sentinel with KE Penetrator Performance ------------- Evolutions (5) 2500 Regions Visited (13) 2600 Robots Destroyed (61) 305 Value Destroyed (2388) 2388 Prototype IDs (23) 460 Alien Tech Used (0) 0 Bonus (842) 842 TOTAL SCORE: 9095 Bonus ------- Follower Combat Kills 42 Entered DSFs 500 Aligned with FarCom 300 Cogmind --------- Core Integrity 0/1000 Matter 300/300 Energy 100/100 System Corruption 0% Temperature Cool (0) Movement Core (50) Location -5/Upper Caves Parts ------- > --- POWER (2) -------- (None) > --- PROPULSION (4) --- (None) > --- UTILITY (9) ------ Improved Coolant Injector Enhanced Optical Array Advanced Target Analyzer Advanced Recoil Stabilizer Advanced System Shield > --- WEAPON (2) ------- (None) > --- INVENTORY (5) ---- Improved Terrain Scan Processor PSU Rigger Wave Gun Variable Charge Gun Peak State ------------ > --- POWER ------------ Light Fission Core > --- PROPULSION ------- Carbon-fiber Leg Flexi-carbon Leg Thunder Leg > --- UTILITY ---------- Advanced Heat Sink Matter Compressor Enhanced Optical Array Targeting Computer Targeting Computer System Shield Advanced System Shield > --- WEAPON ----------- Hypervelocity Coil Gun Hypervelocity Coil Gun > --- INVENTORY -------- Improved Terrain Scan Processor PSU Rigger Heavy Laser Variable Charge Gun Hypervelocity Coil Gun [Rating: 59] Favorites ----------- Power Micro Nuclear Core Engine Improved Ion Engine Power Core Micro Nuclear Core Propulsion VSS Leg Leg VSS Leg Flight Unit Makeshift Flight Unit Utility System Shield Device PSU Rigger Storage Matter Compressor Processor Enhanced Optical Array Hackware System Shield Protection Light Armor Plating Weapon Gauss Cannon Energy Gun Heavy Laser Energy Cannon Plasma Cannon Ballistic Gun Hypervelocity Coil Gun Ballistic Cannon Gauss Cannon Launcher Grenade Launcher Piercing Weapon Makeshift Spear Build | -11 -10 -10 -10 -9 -8 -7 -7 -7 -6 -6 -5 -5 -5 ------- Run | Yrd Mat Min Exi Min Mat Fac Low Low Fac DSF Fac Upp Upp Slots Evolved 10 | . . . . . 4 2 . . 2 . 2 . . Power 1 | . . . . . . 1 . . . . . . . Propulsion 2 | . . . . . 2 . . . . . . . . Utility 7 | . . . . . 2 1 . . 2 . 2 . . Weapon . | . . . . . . . . . . . . . . Parts Attached 69 | 2 2 . 2 2 13 11 2 7 7 . 4 10 7 Power 7 | . . . 1 . 1 3 . . 1 . . 1 . Engine 4 | . . . 1 . 1 2 . . . . . . . Core 3 | . . . . . . 1 . . 1 . . 1 . Reactor . | . . . . . . . . . . . . . . Propulsion 14 | 2 . . . . 5 . . 3 1 . 2 1 . Treads . | . . . . . . . . . . . . . . Leg 12 | 2 . . . . 5 . . 1 1 . 2 1 . Wheel . | . . . . . . . . . . . . . . Hover . | . . . . . . . . . . . . . . Flight 2 | . . . . . . . . 2 . . . . . Utility 25 | . 1 . 1 1 2 6 1 1 2 . 1 5 4 Device 10 | . . . 1 1 . 2 1 1 . . . 1 3 Storage 2 | . . . . . . . . . . . . 2 . Processor 5 | . . . . . . 1 . . 1 . . 2 1 Hackware 3 | . . . . . 1 . . . 1 . 1 . . Protection 5 | . 1 . . . 1 3 . . . . . . . Artifact . | . . . . . . . . . . . . . . Weapon 23 | . 1 . . 1 5 2 1 3 3 . 1 3 3 Energy Gun 4 | . . . . . . . . . 1 . . 1 2 Energy Cannon 2 | . . . . . . 2 . . . . . . . Ballistic Gun 7 | . . . . . 1 . . 2 1 . 1 2 . Ballistic Cannon 6 | . . . . . 3 . 1 . 1 . . . 1 Launcher 3 | . 1 . . . 1 . . 1 . . . . . Special Weapon . | . . . . . . . . . . . . . . Impact Weapon . | . . . . . . . . . . . . . . Slashing Weapon . | . . . . . . . . . . . . . . Piercing Weapon 1 | . . . . 1 . . . . . . . . . Special Melee Weapon . | . . . . . . . . . . . . . . Unidentified Prototypes . | . . . . . . . . . . . . . . Corrupted Parts 1 | . . . . . . . . 1 . . . . . System Corruption 5 | . . . . . . . . 5 . . . . . Parts Lost 37 | . . . . . 2 3 13 4 . . 1 8 6 Power 7 | . . . . . 1 2 2 . . . . 2 . Propulsion 8 | . . . . . . . 3 2 . . . 3 . Utility 13 | . . . . . 1 1 5 1 . . . 3 2 Weapon 9 | . . . . . . . 3 1 . . 1 . 4 Highest Loss Streak 9 | . . . . . 2 3 9 3 . . 1 7 4 To Critical Strikes . | . . . . . . . . . . . . . . Average Backups 4 | . 1 3 3 2 4 4 4 4 4 5 4 5 3 Power . | . . 1 . . . . . . . . . . . Propulsion . | . . 2 2 2 . . . . 1 1 . . . Utility 1 | . . . . . . . 2 2 2 2 2 2 2 Weapon 2 | . . . . . 3 3 2 1 1 2 2 3 1 Tool/Special . | . . . . . . . . . . . . . . Unused Backups 7 | 2 . . . 1 1 . . . . . 1 1 1 Power 2 | . . . . 1 1 . . . . . . . . Propulsion 3 | 2 . . . . . . . . . . 1 . . Utility 1 | . . . . . . . . . . . . . 1 Weapon 1 | . . . . . . . . . . . . 1 . Tool/Special . | . . . . . . . . . . . . . . Average Slot Usage (%) 54 | . 50 57 63 84 72 72 57 11 29 40 36 54 29 Engine 3 | . . . 5 14 4 9 1 . . . . . . Core 2 | . . . . . . 2 6 . 2 6 5 3 . Leg 16 | . 28 28 28 28 32 23 14 4 4 6 6 11 . Device 4 | . . . . 13 9 5 9 . . . . 2 5 Processor 3 | . . . . . . 2 6 . 4 6 5 8 10 Hackware 4 | . . . . . 1 7 1 . 4 6 7 10 5 Protection 4 | . 12 14 14 14 8 4 . . . . . . . Energy Cannon 1 | . . . . . . 7 2 . . . . . . Ballistic Gun 2 | . . . . . 7 . . 1 3 6 3 8 2 Ballistic Cannon 4 | . . . . . 7 6 12 . 4 6 2 . . Launcher 2 | . 10 14 14 12 . . . . . . . . . Peak Build Rating 59 | 2 4 4 12 16 34 43 43 18 28 28 40 59 38 Average Rating 25 | 1 3 4 5 13 22 35 27 8 21 28 30 46 32 On Entrance 17 | . 2 4 4 6 16 34 43 1 6 28 28 40 31 Naked Turns 34 | . . . . . . . 12 22 . . . . . Heaviest Build 47 | . 6 6 11 13 26 47 47 8 21 21 21 25 23 Greatest Support 58 | 20 20 20 20 20 40 36 36 25 15 15 38 58 3 Greatest Overweight (x) 7 | . . . . . . 1 2 . 1 1 5 5 7 Average Overweight (x) . | . . . . . . . . . . 1 . . 1 Largest Inventory Capacity 10 | 5 5 5 5 5 5 5 5 5 5 5 5 10 5 Average Capacity 5 | 5 5 5 5 5 5 5 5 5 5 5 5 5 5 Most Carried 5 | 2 3 3 4 5 5 5 5 5 5 5 5 5 5 Average Carried 4 | . 1 3 3 2 4 4 4 4 4 5 4 5 3 Final Capacity 5 | 5 5 5 5 5 5 5 5 5 5 5 5 5 5 Final Carried 5 | . 3 3 3 5 5 5 4 5 5 5 5 5 4 Class Distribution -------------------- 59% | Mutant 29% | Scavenger-Mutant 11% | Hacker-Mutant Dominant Class ---------------- Mutant | -10/Materials Mutant | -10/Mines Mutant | -10/Exiles Mutant | -9/Mines Mutant | -8/Materials Scavenger-Mutant | -7/Factory Scavenger-Mutant | -7/Lower Caves Mutant | -7/Lower Caves Mutant | -6/Factory Mutant | -6/DSF Hacker-Mutant | -5/Factory Hacker-Mutant | -5/Upper Caves Mutant | -5/Upper Caves Resources | -11 -10 -10 -10 -9 -8 -7 -7 -7 -6 -6 -5 -5 -5 ----------- Run | Yrd Mat Min Exi Min Mat Fac Low Low Fac DSF Fac Upp Upp Matter Collected 2655 | 172 38 143 . 105 372 266 309 120 . . 60 859 211 Remotely . | . . . . . . . . . . . . . . Salvage Created 2552 | . 52 132 . 133 579 255 226 72 . . 60 824 219 Parts 134 | . 4 8 . 7 30 20 8 6 . . 3 41 7 Haulers Intercepted 2 | . 1 . . . 1 . . . . . . . . Recyclers Shooed 3 | . 1 1 . 1 . . . . . . . . . Parts Field Recycled . | . . . . . . . . . . . . . . Retrieved Matter . | . . . . . . . . . . . . . . Parts Self-Destructed 43 | . . . . . . . 6 . . . . 32 5 Prevented 2 | . . . . . . . . 1 . . . . 1 Kills | -11 -10 -10 -10 -9 -8 -7 -7 -7 -6 -6 -5 -5 -5 ------- Run | Yrd Mat Min Exi Min Mat Fac Low Low Fac DSF Fac Upp Upp Combat Hostiles Destroyed 55 | . 2 5 . 4 15 5 4 3 . . 1 11 5 Guns 18 | . . . . . 3 . . 1 . . 1 11 2 Cannons 18 | . . . . . 7 5 4 . . . . . 2 AOE 19 | . 2 5 . 4 5 . . 2 . . . . 1 Classes Destroyed 11 | . 2 1 . 1 3 2 1 . . . . 1 . Builder 2 | . . . . . . 2 . . . . . . . Hauler 2 | . 1 . . . 1 . . . . . . . . Recycler 2 | . . . . 1 1 . . . . . . . . Swarmer 14 | . . 3 . 3 3 . . 3 . . . . 2 Grunt 27 | . 2 2 . 1 5 . 4 . . . 1 9 3 Brawler 1 | . . . . . 1 . . . . . . . . Sentry 6 | . . . . . 4 1 . . . . . 1 . Specialist 2 | . . . . . 2 . . . . . . . . Hunter 1 | . . . . . . . . . . . . 1 . Programmer 4 | . . . . . . 4 . . . . . . . Samaritan 3 | . . . . . . . 2 . . . . 1 . Best Kill Streak 8 | . 3 3 . 3 8 2 2 2 . . 1 5 2 Combat Bots Only 6 | . 2 3 . 3 6 1 2 2 . . 1 5 2 Max Kills in Single Turn 4 | . 1 3 . 3 4 1 1 2 . . 1 1 1 Gunslinging . | . . . . . . . . . . . . . . Exploded 4 | . 1 3 . 3 4 . . 2 . . . . 1 Melee . | . . . . . . . . . . . . . . Uniques/NPCs Destroyed . | . . . . . . . . . . . . . . Combat | -11 -10 -10 -10 -9 -8 -7 -7 -7 -6 -6 -5 -5 -5 -------- Run | Yrd Mat Min Exi Min Mat Fac Low Low Fac DSF Fac Upp Upp Hostile Shots Fired 450 | . 10 13 . . 56 51 99 28 . 17 26 76 74 Missed 128 | . 3 8 . . 22 11 27 10 . 6 4 14 23 Hits 322 | . 7 5 . . 34 40 72 18 . 11 22 62 51 Melee 8 | . . . . . . . . 8 . . . . . Projectile 314 | . 7 5 . . 34 40 72 10 . 11 22 62 51 AOE 1 | . . . . . 1 . . . . . . . . Critical Strikes 21 | . . . . . 3 2 5 . . . 2 4 5 Part Disruptions 1 | . . . . . . . . . . 1 . . . Damage Taken 5775 | . 114 89 . 18 594 501 1439 243 . 186 421 1194 976 Core 1896 | . 33 9 . . 149 75 517 56 . 52 267 193 545 Absorbed by Shields . | . . . . . . . . . . . . . . Ignored by Resistances 57 | . . . . . . 57 . . . . . . . Core Remaining (%) 71 | 100 . . . 83 72 . . 7 . 93 . . . Volleys Fired 223 | . 6 8 . 5 44 26 39 17 . . 9 49 20 Largest 2 | . 1 1 . 1 2 2 2 2 . . 1 2 2 Hottest 160 | . 30 30 . 30 80 160 160 62 . . 69 116 156 Shots Fired 338 | . 6 8 . 5 78 41 69 25 . . 9 75 22 Gun 149 | . . . . . 33 . . 23 . . 8 75 10 Cannon 162 | . . . . . 42 41 66 . . . 1 . 12 Launcher 27 | . 6 8 . 5 3 . 3 2 . . . . . Special . | . . . . . . . . . . . . . . Kinetic 222 | . . . . . 75 16 37 23 . . 1 55 15 Thermal 89 | . . . . . . 25 29 . . . 8 20 7 Explosive 25 | . 6 8 . 5 3 . 3 . . . . . . Electromagnetic 2 | . . . . . . . . 2 . . . . . Robot Hit Streak 11 | . 3 2 . 2 10 6 6 7 . . 2 11 6 Robot Miss Streak 9 | . 1 3 . 2 9 3 7 4 . . 3 3 2 Penetration Max 1 | . . . . . . . . . . . . 1 1 Secondary Targets 2 | . . . . . . . . . . . . 2 . Max Gunslinging Chain 1 | . . . . . . . . . . . . 1 . Shots Hit Robots 213 | . 3 2 . 2 59 19 43 12 . . 5 52 16 Core Hits 140 | . 5 9 . 7 50 9 19 5 . . 3 27 6 Critical Kills 13 | . . . . . . . 1 . . . . 10 2 Critical Parts Destroyed 14 | . . . . . . . . . . . . 6 8 Critical Strikes 33 | . . . . . 1 1 3 . . . 1 17 10 Burn 1 | . . . . . . . . . . . 1 . . Meltdown 1 | . . . . . . . 1 . . . . . . Destroy 27 | . . . . . . . . . . . . 17 10 Blast 4 | . . . . . 1 1 2 . . . . . . Melee Attacks . | . . . . . . . . . . . . . . Impact . | . . . . . . . . . . . . . . Slashing . | . . . . . . . . . . . . . . Piercing . | . . . . . . . . . . . . . . Sneak Attacks . | . . . . . . . . . . . . . . Combat Hostiles . | . . . . . . . . . . . . . . Follow-up Attacks . | . . . . . . . . . . . . . . Damage Inflicted 5679 | . 414 386 . 307 1449 601 1221 325 . . 103 559 314 Guns 1345 | . . . . . 425 . . 162 . . 78 559 121 Cannons 2501 | . . . . . 610 578 1100 . . . 20 . 193 Explosions 1805 | . 414 386 . 307 414 . 121 163 . . . . . Melee . | . . . . . . . . . . . . . . Ramming 28 | . . . . . . 23 . . . . 5 . . Kinetic 2821 | . . . . . 1035 299 790 162 . . 20 301 214 Thermal 1076 | . . . . . . 279 310 51 . . 78 258 100 Explosive 1642 | . 414 386 . 307 414 . 121 . . . . . . Electromagnetic 112 | . . . . . . . . 112 . . . . . Impact . | . . . . . . . . . . . . . . Slashing . | . . . . . . . . . . . . . . Piercing . | . . . . . . . . . . . . . . Highest Corruption 9 | . . . . . . 3 3 9 . . . . . Average Corruption 3 | . . . . . . 2 3 5 . . . . . Corruption Purged . | . . . . . . . . . . . . . . Corruption Blocked . | . . . . . . . . . . . . . . Effects 44 | . . . . . . 16 15 13 . . . . . Message Errors 12 | . . . . . . 4 3 5 . . . . . Matter Fused 9 | . . . . . . 4 2 3 . . . . . Heat Flow Errors 5 | . . . . . . 1 2 2 . . . . . Energy Discharges 5 | . . . . . . 1 3 1 . . . . . Parts Fused 2 | . . . . . . . 1 1 . . . . . Data Loss (minor) 6 | . . . . . . 4 1 1 . . . . . Data Loss (major) 1 | . . . . . . . 1 . . . . . . Misfires 2 | . . . . . . . 2 . . . . . . Alerts 2 | . . . . . . 2 . . . . . . . Overload Shots . | . . . . . . . . . . . . . . Overflow Damage 62 | . 1 7 . . 42 1 11 . . . . . . Projectiles 12 | . . . . . . 1 11 . . . . . . Explosions 50 | . 1 7 . . 42 . . . . . . . . Melee . | . . . . . . . . . . . . . . Knockbacks 18 | . . . . . 7 8 1 . . . 2 . . Impact . | . . . . . . . . . . . . . . Kinetic 17 | . . . . . 7 7 1 . . . 2 . . Secondary 1 | . . . . . . 1 . . . . . . . Self-Inflicted Damage 132 | . 40 32 . 20 13 . . 25 . . 2 . . Shots 7 | . 2 2 . 1 1 . . 1 . . . . . Rammed 2 | . . . . . . . . . . . 2 . . Targets Rammed 8 | . . . . . . 6 . . . . 2 . . Kicked 6 | . . . . . . 6 . . . . . . . Crushed . | . . . . . . . . . . . . . . Highest Temperature 547 | . 5 2 . . 42 256 547 182 . . 95 102 85 Average Temperature 82 | . 5 2 . . 15 53 249 84 . . 55 18 32 Received Heat Transfer 1957 | . 42 18 . . 237 18 543 . . . 234 510 355 Effects 13 | . . . . . . 1 12 . . . . . . Shutdowns 3 | . . . . . . . 3 . . . . . . Energy Bleed 1 | . . . . . . . 1 . . . . . . Interference 2 | . . . . . . 1 1 . . . . . . Short Circuit 2 | . . . . . . . 2 . . . . . . Damage (minor) 2 | . . . . . . . 2 . . . . . . Damage (major) 3 | . . . . . . . 3 . . . . . . Siege Activations . | . . . . . . . . . . . . . . Martial Activations . | . . . . . . . . . . . . . . Shielding Activations . | . . . . . . . . . . . . . . Robots Disrupted . | . . . . . . . . . . . . . . Combat Hostiles . | . . . . . . . . . . . . . . Robots Corrupted . | . . . . . . . . . . . . . . Combat Hostiles . | . . . . . . . . . . . . . . Parts Fried . | . . . . . . . . . . . . . . Impact Corruptions . | . . . . . . . . . . . . . . Robots Melted 1 | . . . . . . . 1 . . . . . . Combat Hostiles . | . . . . . . . . . . . . . . Parts Melted 3 | . . . . . . . 3 . . . . . . Heat Transferred 2001 | . . . . . . 500 600 50 . . 222 481 148 Parts Sabotaged . | . . . . . . . . . . . . . . Parts Stolen 3 | . . . . . . . . 3 . . . . . Parts Stripped . | . . . . . . . . . . . . . . Power Chain Reactions 1 | . . . . . . . . 1 . . . . . Alert | -11 -10 -10 -10 -9 -8 -7 -7 -7 -6 -6 -5 -5 -5 ------- Run | Yrd Mat Min Exi Min Mat Fac Low Low Fac DSF Fac Upp Upp Maximum Alert Level 1 | . . . . . 1 . . . . . . . . Low Security (%) 94 | 100 100 100 . 100 62 100 . . 100 100 100 . . Level 1 5 | . . . . . 37 . . . . . . . . Level 2 . | . . . . . . . . . . . . . . Level 3 . | . . . . . . . . . . . . . . Level 4 . | . . . . . . . . . . . . . . Level 5 . | . . . . . . . . . . . . . . High Security . | . . . . . . . . . . . . . . Max Security . | . . . . . . . . . . . . . . Peak Influence 270 | . 80 102 . 104 270 119 . . . 18 20 . . Initial 119 | . . 18 . . 1 119 . . . 3 9 . . Average 47 | . 47 62 . 60 150 33 . . . 5 1 . . Influence Increases 1874 | . 97 164 . 134 472 297 90 70 5 15 20 250 260 Destroy 0b10 Robot/C 1140 | . 40 100 . 80 340 100 80 60 . . 20 220 100 Destroy 0b10 Robot/NC 35 | . 5 5 . 5 10 10 . . . . . . . Destroy Leader 224 | . 2 20 . 10 82 50 10 10 . . . 30 10 Allied During Kill 2 | . . . . . 2 . . . . . . . . Successful Hack 17 | . . . . . . 12 . . 5 . . . . Disable Machine 105 | . 30 . . 15 . 60 . . . . . . . Destroy Structure 111 | . 20 39 . 24 23 5 . . . . . . . Partial Spotted 15 | . . . . . . 15 . . . . . . . Lose Combat Pursuer 225 | . . . . . 15 45 . . . 15 . . 150 Influence Decreases 1804 | . 50 139 72 130 214 493 156 70 . 2 38 232 208 Entered New Map 287 | . . 29 72 . 3 143 25 . . 2 9 . 4 Time Decay 1318 | . 50 110 . 130 181 345 91 50 . . 29 162 170 Lost Part 179 | . . . . . 10 5 40 20 . . . 70 34 Lost Ally 20 | . . . . . 20 . . . . . . . . Squads Dispatched 10 | . . . . . 4 3 . . . 1 2 . . Investigation . | . . . . . . . . . . . . . . Extermination 4 | . . . . . . 3 . . . . 1 . . Reinforcement 4 | . . . . . 2 . . . . 1 1 . . Assault . | . . . . . . . . . . . . . . Garrison 2 | . . . . . 2 . . . . . . . . Intercept . | . . . . . . . . . . . . . . Searches Triggered . | . . . . . . . . . . . . . . Construction Impeded 1 | . . . . . . . . . . . 1 . . Haulers Reinforced . | . . . . . . . . . . . . . . Active Scanning Responses . | . . . . . . . . . . . . . . Cargo Convoy Interrupts . | . . . . . . . . . . . . . . Stealth | -11 -10 -10 -10 -9 -8 -7 -7 -7 -6 -6 -5 -5 -5 --------- Run | Yrd Mat Min Exi Min Mat Fac Low Low Fac DSF Fac Upp Upp Distress Signals 3 | . . . . . . 3 . . . . . . . Communications Jammed . | . . . . . . . . . . . . . . Distress Signals . | . . . . . . . . . . . . . . Times Spotted 83 | . 3 5 . . 25 10 5 5 . 4 1 11 14 Peak Tracking Total 6 | . 2 3 . . 6 5 4 3 . 3 1 5 5 Tactical Retreats 11 | . . . . . 1 2 . . . 1 . . 7 Traps | -11 -10 -10 -10 -9 -8 -7 -7 -7 -6 -6 -5 -5 -5 ------- Run | Yrd Mat Min Exi Min Mat Fac Low Low Fac DSF Fac Upp Upp Traps Triggered 3 | . . . . . . 1 . . 1 . 1 . . Indirectly . | . . . . . . . . . . . . . . Trap Hack Attempts . | . . . . . . . . . . . . . . Triggered . | . . . . . . . . . . . . . . Disarmed . | . . . . . . . . . . . . . . Reprogrammed . | . . . . . . . . . . . . . . Reused . | . . . . . . . . . . . . . . Traps Extracted . | . . . . . . . . . . . . . . Installed . | . . . . . . . . . . . . . . Triggered . | . . . . . . . . . . . . . . Objects Rigged 3 | . . . . 1 1 1 . . . . . . . Time Bombs Activated 3 | . . . . 1 1 1 . . . . . . . Exploded 3 | . . . . 1 1 1 . . . . . . . Machines | -11 -10 -10 -10 -9 -8 -7 -7 -7 -6 -6 -5 -5 -5 ---------- Run | Yrd Mat Min Exi Min Mat Fac Low Low Fac DSF Fac Upp Upp Machines Disabled 8 | . 2 . . 1 . 4 . . . . . . 1 Max in Single Turn 2 | . 2 . . 1 . 1 . . . . . . 1 Machines Repaired . | . . . . . . . . . . . . . . Machines Dismantled . | . . . . . . . . . . . . . . Machines Sabotaged . | . . . . . . . . . . . . . . Overloaded Fab Kills . | . . . . . . . . . . . . . . Hacking | -11 -10 -10 -10 -9 -8 -7 -7 -7 -6 -6 -5 -5 -5 --------- Run | Yrd Mat Min Exi Min Mat Fac Low Low Fac DSF Fac Upp Upp Machines Accessed 7 | . . . 2 . . 1 . 1 2 . . . 1 Terminals 2 | . . . . . . . . . 2 . . . . Fabricators . | . . . . . . . . . . . . . . Repair Stations . | . . . . . . . . . . . . . . Recycling Units . | . . . . . . . . . . . . . . Scanalyzers 1 | . . . . . . 1 . . . . . . . Garrison Access . | . . . . . . . . . . . . . . Total Hacks 32 | . . . 24 . . 2 . 1 4 . . . 1 Successful 29 | . . . 24 . . 2 . 1 1 . . . 1 Failed 3 | . . . . . . . . . 3 . . . . Catastrophic 1 | . . . . . . . . . 1 . . . . Database Lockouts . | . . . . . . . . . . . . . . Manual 1 | . . . 1 . . . . . . . . . . Terminals 4 | . . . . . . . . . 4 . . . . Fabricators . | . . . . . . . . . . . . . . Repair Stations . | . . . . . . . . . . . . . . Recycling Units . | . . . . . . . . . . . . . . Scanalyzers 2 | . . . . . . 2 . . . . . . . Garrison Access . | . . . . . . . . . . . . . . Terminal Hacks 27 | . . . 24 . . . . 1 1 . . . 1 Record 24 | . . . 23 . . . . 1 . . . . . Open Door 1 | . . . . . . . . . . . . . 1 Open DSF 1 | . . . . . . . . . 1 . . . . Proto ID Catalog 1 | . . . 1 . . . . . . . . . . Fabricator Hacks . | . . . . . . . . . . . . . . Repair Station Hacks . | . . . . . . . . . . . . . . Recycling Unit Hacks . | . . . . . . . . . . . . . . Scanalyzer 2 | . . . . . . 2 . . . . . . . Insert Component 1 | . . . . . . 1 . . . . . . . Analyze 1 | . . . . . . 1 . . . . . . . Garrison Access Hacks . | . . . . . . . . . . . . . . Unauthorized Hacks . | . . . . . . . . . . . . . . Terminals . | . . . . . . . . . . . . . . Fabricators . | . . . . . . . . . . . . . . Repair Stations . | . . . . . . . . . . . . . . Recycling Units . | . . . . . . . . . . . . . . Scanalyzers . | . . . . . . . . . . . . . . Garrison Access . | . . . . . . . . . . . . . . Data Cores Recovered . | . . . . . . . . . . . . . . Used . | . . . . . . . . . . . . . . Hacking Detections 1 | . . . . . . . . . 1 . . . . Full Trace Events . | . . . . . . . . . . . . . . Feedback Events . | . . . . . . . . . . . . . . Feedback Blocked . | . . . . . . . . . . . . . . Robot Schematics Acquired . | . . . . . . . . . . . . . . Robots Built . | . . . . . . . . . . . . . . Authchips . | . . . . . . . . . . . . . . Time . | . . . . . . . . . . . . . . Total Robot Build Rating . | . . . . . . . . . . . . . . Part Schematics Acquired 1 | . . . . . . 1 . . . . . . . Parts Built . | . . . . . . . . . . . . . . Authchips . | . . . . . . . . . . . . . . Time . | . . . . . . . . . . . . . . Total Part Build Rating . | . . . . . . . . . . . . . . Parts Repaired . | . . . . . . . . . . . . . . Time . | . . . . . . . . . . . . . . Parts Recycled . | . . . . . . . . . . . . . . Recycled Matter . | . . . . . . . . . . . . . . Retrieved Matter . | . . . . . . . . . . . . . . Retrieved Components . | . . . . . . . . . . . . . . Parts Scanalyzed 1 | . . . . . . 1 . . . . . . . Part Schematics Acquired 1 | . . . . . . 1 . . . . . . . Parts Damaged . | . . . . . . . . . . . . . . Bothacking | -11 -10 -10 -10 -9 -8 -7 -7 -7 -6 -6 -5 -5 -5 ------------ Run | Yrd Mat Min Exi Min Mat Fac Low Low Fac DSF Fac Upp Upp Used RIF Installer . | . . . . . . . . . . . . . . Robots Hacked . | . . . . . . . . . . . . . . Non-combat . | . . . . . . . . . . . . . . Combat . | . . . . . . . . . . . . . . Robot Hacks Applied . | . . . . . . . . . . . . . . Relay Couplers Released . | . . . . . . . . . . . . . . Fabnet Peak Effective % . | . . . . . . . . . . . . . . Robots Rewired . | . . . . . . . . . . . . . . Allies Hacked . | . . . . . . . . . . . . . . Hacks Repelled . | . . . . . . . . . . . . . . Allies | -11 -10 -10 -10 -9 -8 -7 -7 -7 -6 -6 -5 -5 -5 -------- Run | Yrd Mat Min Exi Min Mat Fac Low Low Fac DSF Fac Upp Upp Total Allies 3 | . . . . 2 . . 1 . . . . . . Largest Group 2 | . . . . 2 2 . 1 . . . . . . Highest-Rated Group 106 | . . . . 32 32 . 106 . . . . . . Highest-Rated Ally 106 | . . . . 16 16 . 106 . . . . . . Total Orders 1 | . . . 1 . . . . . . . . . . RETURN 1 | . . . 1 . . . . . . . . . . Ally Attacks 5 | . . . . . 5 . . . . . . . . Total Damage 65 | . . . . . 65 . . . . . . . . Kills 2 | . . . . . 2 . . . . . . . . Allies Corrupted . | . . . . . . . . . . . . . . Allies Melted . | . . . . . . . . . . . . . . Intel | -11 -10 -10 -10 -9 -8 -7 -7 -7 -6 -6 -5 -5 -5 ------- Run | Yrd Mat Min Exi Min Mat Fac Low Low Fac DSF Fac Upp Upp Active Infowar (turns) 1732 | . . . . . . . . . 155 53 566 570 388 Optics 1732 | . . . . . . . . . 155 53 566 570 388 Robot Analysis Total . | . . . . . . . . . . . . . . Derelict Logs Recovered 6 | . . . . . . . 1 2 . . . 2 1 Drone Launches 1 | . . . 1 . . . . . . . . . . Drone Recoveries 1 | . . . 1 . . . . . . . . . . Exploration | -11 -10 -10 -10 -9 -8 -7 -7 -7 -6 -6 -5 -5 -5 ------------- Run | Yrd Mat Min Exi Min Mat Fac Low Low Fac DSF Fac Upp Upp Turns Passed 5640 | 42 129 230 309 272 499 1261 642 475 204 53 566 570 388 Spaces Moved 3924 | 37 92 179 249 189 302 820 305 560 205 30 347 295 314 Core 456 | 13 . . . . . . 24 41 . . 48 16 314 Treads . | . . . . . . . . . . . . . . Legs 3035 | 24 92 179 249 189 302 820 281 192 99 30 299 279 . Wheels . | . . . . . . . . . . . . . . Hover . | . . . . . . . . . . . . . . Flight 433 | . . . . . . . . 327 106 . . . . Fastest Speed 45 | 50 120 120 120 120 90 90 50 45 55 180 120 120 50 Average Speed 117 | 95 120 120 120 120 109 119 170 75 92 180 152 129 103 Slowest Speed 400 | 120 120 120 120 120 120 180 270 120 180 180 300 300 400 Overloaded Moves . | . . . . . . . . . . . . . . Propulsion Burnouts . | . . . . . . . . . . . . . . Robots Hopped 1 | . . . . . . . . . 1 . . . . Potential Cave-ins . | . . . . . . . . . . . . . . Cave-ins Triggered . | . . . . . . . . . . . . . . Exploration Rate (%) 37 | 3 20 52 61 59 29 21 50 65 8 49 11 54 38 Regions Visited 13 Branch Regions 7 Pre-discovered Areas 2 | . . . 1 . . . . . . . . . 1 Known Exits Taken 2 | . . . . . . . . . 1 . . 1 . Unknown Exits Taken 10 | 1 1 1 1 1 1 1 1 1 . . 1 . . Scrap Searched 13 | . . 1 . 1 . . 3 1 . . . 3 4 Spaces Dug . | . . . . . . . . . . . . . . Terrain Destroyed 153 | . 20 55 . 24 28 5 13 . . . . 8 . Melee . | . . . . . . . . . . . . . . Projectile 14 | . . . . . 3 5 6 . . . . . . AOE 131 | . 20 55 . 24 25 . 7 . . . . . . Terrain Rammed . | . . . . . . . . . . . . . . Walls Destroyed . | . . . . . . . . . . . . . . Machines Disabled . | . . . . . . . . . . . . . . Actions | -11 -10 -10 -10 -9 -8 -7 -7 -7 -6 -6 -5 -5 -5 --------- Run | Yrd Mat Min Exi Min Mat Fac Low Low Fac DSF Fac Upp Upp Total 4606 | 44 104 186 260 229 391 1061 360 591 215 29 369 408 359 Wait 285 | . . . 4 25 15 180 6 . . . . 50 5 Move 3909 | 36 91 178 248 188 301 819 304 559 203 29 346 294 313 Hop 1 | . . . . . . . . . 1 . . . . Pick Up 49 | 4 5 . 3 5 9 5 3 6 2 . 4 2 1 Fast Attach 34 | . . . . . 2 9 . 2 5 . 4 7 5 Attach 39 | 2 2 . 3 1 5 5 4 6 2 . 2 . 7 Detach 9 | . . . . . . 3 . 1 . . . . 5 Swap 15 | . . . . 1 7 . 2 . 1 . . 3 1 Drop 28 | 2 . . 2 2 6 6 2 . 1 . 2 3 2 Fire 223 | . 6 8 . 5 44 26 39 17 . . 9 49 20 Melee . | . . . . . . . . . . . . . . Ram 2 | . . . . . . . . . . . 2 . . Kick 6 | . . . . . . 6 . . . . . . . Crush . | . . . . . . . . . . . . . . Escape Stasis . | . . . . . . . . . . . . . . Rewire . | . . . . . . . . . . . . . . Trap 6 | . . . . 2 2 2 . . . . . . . Miscellaneous . | . . . . . . . . . . . . . . Route ------- -11/Scrapyard -10/Materials -10/Mines (discovered 2 exits: [*Mat] / *Exi) -10/Exiles -9/Mines -8/Materials -7/Factory -7/Lower Caves -7/Lower Caves -6/Factory (discovered 2 exits: Low / DSF) -6/DSF -5/Factory -5/Upper Caves -5/Upper Caves (discovered 1 exit: [*Fac]) History --------- Turn | Location | Event 2 | -11/Scrapyard | Met Revision 17 8 | -11/Scrapyard | Discovered new exit (range 15) 43 | -11/Scrapyard | Entered Materials 164 | -10/Materials | Discovered new exit (range 6) 172 | -10/Materials | Entered Mines 305 | -10/Mines | Build established: Mutant 312 | -10/Mines | Discovered new exit (range 6) 397 | -10/Mines | Deemed a non-threat by the Exiles lab entrance 397 | -10/Mines | Discovered new exit (range 5) 402 | -10/Mines | Entered Exiles 431 | -10/Exiles | Met 8R-AWN 454 | -10/Exiles | Met EX-HEX 486 | -10/Exiles | Met EX-BIN 501 | -10/Exiles | Aligned with FarCom system 502 | -10/Exiles | Given EX-Vault access code 534 | -10/Exiles | Opened EX-Vault 543 | -10/Exiles | Found Supersonic Drone Bay 573 | -10/Exiles | Found PSU Rigger 601 | -10/Exiles | Warned to stay clear of 0b10 Research branches 640 | -10/Exiles | Met EX-DEC 650 | -10/Exiles | Learned location of Zion (-7) 698 | -10/Exiles | Discovered new exit (range 14) 711 | -10/Exiles | Left Exiles lab with PSU Rigger 711 | -10/Exiles | Entered Mines 786 | -9/Mines | Assisted by bots powering up and referring to "LRC-V3" 910 | -9/Mines | Received a Rocket Launcher from a helpful Derelict 935 | -9/Mines | A weapon hastily lodged in a ceiling crevice suddenly fell to the ground 967 | -9/Mines | Discovered new exit (range 7) 983 | -9/Mines | Entered Materials 983 | -8/Materials | Accompanied by 2 allies 983 | -8/Materials | Evolved 4 slots: Propulsion x2, Utility x2 1283 | -8/Materials | Garrison activated, responded to threat 1461 | -8/Materials | Discovered new exit (range 11) 1482 | -8/Materials | Entered Factory 1482 | -7/Factory | Evolved 2 slots: Power x1, Utility x1 1788 | -7/Factory | Build established: Scavenger-Mutant 2001 | -7/Factory | Lost 3 parts (2p1u) 2233 | -7/Factory | Build established: Mutant 2557 | -7/Factory | Build established: Scavenger-Mutant 2707 | -7/Factory | Discovered new exit (range 15) 2743 | -7/Factory | Entered Lower Caves 2871 | -7/Lower Caves | Lost 4 parts (1p1n2u) 2913 | -7/Lower Caves | Learned Factory security intel 3327 | -7/Lower Caves | Spotted B-75 Beast 3359 | -7/Lower Caves | Core integrity fell below 50% 3380 | -7/Lower Caves | Core integrity fell below 20% 3382 | -7/Lower Caves | Discovered new exit (range 6) 3385 | -7/Lower Caves | Entered another Lower Caves area 3389 | -7/Lower Caves | Learned Factory non-interactive machine intel 3394 | -7/Lower Caves | Entered a destroyed Warlord outpost 3404 | -7/Lower Caves | Lost 9 parts (1p2n3u3w) 3404 | -7/Lower Caves | Learned location of 1 exit from Factory 3677 | -7/Lower Caves | Build established: Mutant 3763 | -7/Lower Caves | Lost 3 parts (2n1w) 3852 | -7/Lower Caves | Discovered new exit (range 7) 3860 | -7/Lower Caves | Entered Factory 3860 | -6/Factory | Evolved 2 slots: Utility x2 3861 | -6/Factory | Identified exit to Lower Caves 3863 | -6/Factory | Loaded intel: 194 non-interactive machine locations 4064 | -6/Factory | Identified exit to DSF 4064 | -6/Factory | Entered DSF 4079 | -6/DSF | Discovered new exit (range 21) 4088 | -6/DSF | Additional patrols routed to DSF 4117 | -6/DSF | Entered Factory 4117 | -5/Factory | Evolved 2 slots: Utility x2 4538 | -5/Factory | Spotted B-75 Beast 4665 | -5/Factory | Discovered new exit (range 9) 4683 | -5/Factory | Entered Upper Caves 4701 | -5/Upper Caves | Build established: Hacker-Mutant 5037 | -5/Upper Caves | Learned Factory emergency access door positions 5039 | -5/Upper Caves | Identified exit to Upper Caves 5080 | -5/Upper Caves | Attracted the attention of an 0b10 checkpoint 5223 | -5/Upper Caves | Lost 7 parts (1p3n3u) 5253 | -5/Upper Caves | Entered another Upper Caves area 5253 | -5/Upper Caves | Discovered new exit (range 8) 5269 | -5/Upper Caves | Core integrity fell below 50% 5301 | -5/Upper Caves | Lost 4 parts (2u2w) 5472 | -5/Upper Caves | Build established: Mutant 5525 | -5/Upper Caves | Spotted B-75 Beast 5548 | -5/Upper Caves | Core integrity fell below 20% 5559 | -5/Upper Caves | Attracted the attention of an 0b10 checkpoint 5641 | -5/Upper Caves | Destroyed by Y-64 Sentinel with KE Penetrator Last Messages --------------- Acquired 10 matter. Hyp. Coil Gun destroyed. S-27 Virus destroyed. Acquired 15 matter. Y-64 Sentinel: "INTERCEPTING UNREGISTERED DERELICT." Penetrated by Slug. Slug penetrates Wall. Autogun fries itself beyond repair. Critical hit (Burn: +37). Slug penetrates Wall. Searching scrap... Found Imp. Target Analyzer. Found 49 Matter. S-27 Virus destroyed. Acquired derelict log, extracted data. World map updated: -6/Factory. Slug penetrates Wall. Acquired 10 matter. Penetrated by Slug. Map ----- +----------------------------------------------------+ | ????????????# #?????## #????????????????? | | ???????????## ##????# #?????????????????? | | ?????????### ###### #?????????????????? | | ???????### ##?????????????????? | | ??????## ##??????????????????? | | ??????# ### ## #???????????????????? | | ??????# ##### #???????????????????? | | ??????# ##?# #???????????????????? | | ??????# ## #?# #???????????????????? | | ??? ??## ### ####?????????????????? | | ? ????# #?????????????????? | | ? ??????# ### $ # #?????????????????? | | ???????????## #?####### #?????????????????? | | ????????????### #####???## ##????????????????? | | ??????????????## #######! #????????????????? | | ???????????????# %# #????????????????? | | ???????????????# #????????????????? | | ???????????????### ##########????????????????? | | ?????????????????## ##?????????????????????? | | ??????????????????# #?????????????????????? | | ??????????????????# ### #?????????????????????? | | ??????????????????###?# #?????????????????????? | | ??????????????????????# #?????????????????????? | | ??????????????????????# #?????????????????????? | | ??????????????????##### ##?????????????????????? | | ???????????????#### ##% @#??????????????????????? | | ??????????????## ###????????????????????? | | ????????###??## #"#?????????????###????? | | ???????## ### #####?????????## ###??? | | ???????# ## #?????????# [# #??? | | ????????# ##?????????#! #??? | | ????????## ##?????????## # #??? | | ?????????# #??????????### #??? | | ?????????# ## #???????????# ##??? | | ?????????# ### #????????#### ##### | | ?????????# Y##?# #???????## # # # | | ?????????# #?## ######??# | | ?????????# #?# #??# | | ??????##### ###### #??## | | ??????# ##### ##??# #### #???## | | ?????# ###???## #?##%#####??# ###### ## | | ?????## ##??????# #?# #??????# ##? | | ??????####???????## ##?# #??????# ##? | | ??????????????#### ##?# #??????######### ## | | ?????????????## #?# #???????????#### ## | | ????????????## #?#! #??????????## | | ????????????# ##?# %#????????### | | ???????????## #### ###??#### ### | | ?????????### #?## #####?## | | ?????????# ## # "" ### ##### #??????# | +----------------------------------------------------+ Best States ------------- Heat Dissipation 61 Coolant Potential 80 Energy Generation 26 Energy Capacity 430 Matter Stores 550 Matter Capacity 550 Sight Range 22 Terrain Scan Density 10 Armor Coverage 600 Resistance: EM 15 Evasion (%) 70 Targeting Accuracy 10 Target Analysis 8 Recoil Reduction 6 Defensive Hacking 24 Item Schematics ----------------- VSS Leg | -7/Factory | Scanalyzed Robot Schematics ------------------ None Fabricated ------------ Nothing Repaired ---------- Nothing Alien Tech Used ----------------- None Achievements -------------- None Challenges ------------ None Game ------ Seed StealthPlasmaFalx Manual? 0 Play Time 00:39:43 Cumulative 177.6 hours Start 2025.10.10 @ 07:59:07 End 2025.10.10 @ 08:37:21 Sessions 1 Manual Loads 0 Difficulty Rogue Special Mode None Game No. 544 Rogue 543 Adventurer 1 Explorer 0 Win Type - Total 0 Types 0/0/0/0/0/0/0/0/0/0 Lore% 61 Gallery% 58 Achievement% 44 Wizard Run 0 Options --------- Layout 1 ASCII 0 Keyboard 0 Movement Mouse Keybinds 0 Fullscreen 1 Font 24/Smallcaps Map View 50x35 Zoom Use 0% Tactical HUD 0 Map Filters NONE Filters NONE Steam 1 RUN: 951cece4-bc47-4ff0-a5bb-e8cf1cbc86c1